bitfinex/quotes_BTCUSD_20250711
["timestamp","ask_amount","ask_price","bid_price","bid_amount"]
[1752218326053,1.48348891,117560.0,117550.0,0.01591568]
[1752218327385,1.50298891,117560.0,117550.0,0.01591568]
[1752218336326,1.50298891,117560.0,117550.0,0.07591568]
[1752218336540,1.48348891,117560.0,117550.0,0.07591568]
[1752218338466,1.50437891,117560.0,117550.0,0.07591568]
[1752218338700,1.9703831,117560.0,117550.0,0.07591568]
[1752218338922,2.01727296,117560.0,117550.0,0.07591568]
[1752218339135,2.01727296,117560.0,117550.0,0.01591568]
[1752218340299,2.0257786,117560.0,117550.0,0.01591568]
[1752218340744,2.01727296,117560.0,117550.0,0.01591568]
[1752218342011,2.0257786,117560.0,117550.0,0.01591568]
[1752218342422,2.01727296,117560.0,117550.0,0.01591568]
[1752218344450,1.97183859,117560.0,117550.0,0.01591568]
[1752218346249,0.64601355,117560.0,117550.0,0.01591568]
[1752218346471,1.52989691,117560.0,117550.0,0.01591568]
[1752218347366,1.37628691,117560.0,117550.0,0.01591568]
[1752218347615,1.47532606,117560.0,117550.0,0.02097568]
[1752218348025,1.51282606,117560.0,117550.0,0.01591568]
[1752218348503,1.52736691,117560.0,117550.0,0.01591568]
[1752218350981,1.52865691,117560.0,117550.0,0.01591568]
[1752218351142,1.92865691,117560.0,117550.0,0.01591568]
[1752218352167,1.92736691,117560.0,117550.0,0.01591568]
[1752218353286,1.95085756,117560.0,117550.0,0.01591568]
[1752218355814,1.38067756,117560.0,117550.0,0.02097568]
[1752218356022,1.48982691,117560.0,117550.0,0.02097568]
[1752218356219,1.50742691,117560.0,117550.0,0.01891568]
[1752218356424,1.50742691,117560.0,117550.0,0.01591568]
[1752218356831,1.96895859,117560.0,117550.0,0.01591568]
[1752218357037,1.99244924,117560.0,117550.0,0.01591568]
[1752218360153,1.85980924,117560.0,117550.0,0.01591568]
[1752218360362,1.85980924,117560.0,117510.0,0.10177023]
[1752218360363,0.01837562,117530.0,117510.0,0.10177023]
[1752218360598,1.37485898,117520.0,117510.0,0.02208]
[1752218360806,1.2320561,117520.0,117510.0,0.03937]
[1752218361062,1.3646561,117520.0,117510.0,0.03937]
[1752218361259,1.2320561,117520.0,117510.0,0.04245]
[1752218361476,1.39389369,117520.0,117510.0,0.04245]
[1752218361675,1.38572095,117520.0,117510.0,0.04245]
[1752218362471,1.25312095,117520.0,117510.0,0.04245]
[1752218362709,1.25312095,117520.0,117510.0,0.10354023]
[1752218362710,1.38572095,117520.0,117510.0,0.10354023]
[1752218364166,1.38672095,117520.0,117510.0,0.10354023]
[1752218365413,0.60477927,117520.0,117510.0,0.10354023]
[1752218365616,0.42912578,117520.0,117510.0,0.18897016]
[1752218365936,0.1326,117530.0,117520.0,0.0364]
[1752218366141,0.44194168,117530.0,117520.0,0.18500289]
[1752218366258,0.44194168,117530.0,117520.0,0.18808289]
[1752218367398,0.44194168,117530.0,117520.0,0.18908289]
[1752218367884,0.02473569,117540.0,117530.0,0.0369]
[1752218368097,0.57454168,117540.0,117530.0,0.04205]
[1752218368308,0.60014265,117540.0,117530.0,0.04205]
[1752218369401,0.46754265,117540.0,117530.0,0.04205]
[1752218369600,0.60114265,117540.0,117530.0,0.04205]
[1752218370086,0.15920097,117540.0,117530.0,0.04205]
[1752218370234,0.60114265,117540.0,117530.0,0.04205]
[1752218370652,0.15920097,117540.0,117530.0,0.04205]
[1752218370849,0.60114265,117540.0,117530.0,0.04205]
[1752218371922,0.46854265,117540.0,117530.0,0.04205]
[1752218372129,0.60114265,117540.0,117530.0,0.05797075]
[1752218373242,0.46854265,117540.0,117530.0,0.05797075]
[1752218373454,0.60114265,117540.0,117530.0,0.05797075]
[1752218375337,0.60014265,117540.0,117530.0,0.05797075]
[1752218375537,0.60014265,117540.0,117530.0,0.05897075]
[1752218377349,0.46754265,117540.0,117530.0,0.05897075]
[1752218377494,0.60014265,117540.0,117530.0,0.05897075]
[1752218378830,0.46745668,117560.0,117540.0,0.0371]
[1752218379027,0.599175,117550.0,117540.0,0.01591931]
[1752218379268,0.57450168,117550.0,117540.0,0.01798931]
[1752218379465,0.54098106,117550.0,117540.0,0.05508931]
[1752218379714,0.40842106,117550.0,117540.0,0.05816931]
[1752218379936,0.376,117580.0,117550.0,0.0371]
[1752218380170,1.22488336,117560.0,117550.0,0.05301931]
[1752218380377,1.22488336,117560.0,117550.0,0.05508786]
[1752218380582,1.35644336,117560.0,117550.0,0.05508786]
[1752218380789,1.35644336,117560.0,117550.0,0.05816786]
[1752218381165,0.88388336,117560.0,117550.0,0.05816786]
[1752218381328,1.01644336,117560.0,117550.0,0.05816786]
[1752218381528,1.04126754,117560.0,117550.0,0.05816786]
[1752218381955,0.90870754,117560.0,117550.0,0.05816786]
[1752218382162,0.46676586,117560.0,117550.0,0.05816786]
[1752218382358,0.44194168,117560.0,117550.0,0.14359779]
[1752218382790,0.44294168,117560.0,117550.0,0.14359779]
[1752218383150,0.44294168,117560.0,117550.0,0.14359103]
[1752218383356,1.01744336,117560.0,117550.0,0.0581611]
[1752218384997,0.13356,117560.0,117550.0,0.0581611]
[1752218385307,1.01744336,117560.0,117550.0,0.0581611]
[1752218385506,1.02913949,117560.0,117550.0,0.0581611]
[1752218385698,1.02913949,117560.0,117550.0,0.11926406]
[1752218386720,0.14525613,117560.0,117550.0,0.11926406]
[1752218386925,1.02913949,117560.0,117550.0,0.11926406]
[1752218387144,1.02913949,117560.0,117550.0,0.0581611]
[1752218387498,1.02913949,117560.0,117550.0,0.0411611]
[1752218388324,1.02913949,117560.0,117550.0,0.04114016]
[1752218388914,1.02913949,117560.0,117550.0,0.04113532]
[1752218389087,1.02913949,117560.0,117550.0,0.02203532]
[1752218389290,1.04841949,117560.0,117550.0,0.01688532]
[1752218389904,1.04841949,117560.0,117550.0,0.01994532]
[1752218390331,1.04841949,117560.0,117550.0,0.01688532]
[1752218391138,1.04841949,117560.0,117550.0,0.01687962]
[1752218391395,1.04841949,117560.0,117550.0,0.01993962]
[1752218392116,0.16453613,117560.0,117550.0,0.01993962]
[1752218392323,1.04841949,117560.0,117550.0,0.01993962]
[1752218392721,1.04841949,117560.0,117550.0,0.01687962]
[1752218392853,1.04341949,117560.0,117550.0,0.01687962]
[1752218393468,1.86159883,117560.0,117550.0,0.01687962]
[1752218393673,1.88846134,117560.0,117550.0,0.01687962]
[1752218394029,1.47203266,117560.0,117550.0,0.01687962]
[1752218395281,1.57200344,117560.0,117550.0,0.01687962]
[1752218402630,1.57200344,117560.0,117550.0,0.01689408]
[1752218403618,1.54643093,117560.0,117550.0,0.01689408]
[1752218404474,1.43039348,117560.0,117550.0,0.01689408]
[1752218404678,1.52667582,117560.0,117550.0,0.01689408]
[1752218405446,1.54557582,117560.0,117550.0,0.01689408]
[1752218408982,1.52667582,117560.0,117550.0,0.01689408]
[1752218409806,0.42484253,117560.0,117550.0,0.01995408]
[1752218410008,1.27490504,117560.0,117550.0,0.02194408]
[1752218410262,1.40742504,117560.0,117550.0,0.04074408]
[1752218411374,1.40742504,117560.0,117550.0,0.05894408]
[1752218411547,1.40742504,117560.0,117550.0,0.11992452]
[1752218412175,1.40742504,117560.0,117550.0,0.10172452]
[1752218412358,1.39722532,117560.0,117550.0,0.10172452]
[1752218413529,1.39722532,117560.0,117550.0,0.08292452]
[1752218414393,1.39722532,117560.0,117550.0,0.10202452]
[1752218416095,1.39722532,117560.0,117550.0,0.08292452]
[1752218417503,0.51334196,117560.0,117550.0,0.08292452]
[1752218417700,1.39722532,117560.0,117550.0,0.08292452]
[1752218418680,1.39722532,117560.0,117550.0,0.10152452]
[1752218419760,1.39722532,117560.0,117550.0,0.12002452]
[1752218419936,0.92977064,117560.0,117550.0,0.12005272]
[1752218420366,0.79725064,117560.0,117550.0,0.05907228]
[1752218420572,0.92977064,117560.0,117550.0,0.05907228]
[1752218420762,0.47401767,117560.0,117550.0,0.05907228]
[1752218420968,0.91595935,117560.0,117550.0,0.05907228]
[1752218421614,0.34149767,117560.0,117550.0,0.05907228]
[1752218421766,0.44343935,117560.0,117550.0,0.14450221]
[1752218422170,0.44343935,117560.0,117550.0,0.22072776]
[1752218422416,0.43324104,117560.0,117550.0,0.22072776]
[1752218422618,0.02551,117570.0,117550.0,0.10740221]
[1752218422793,0.44194168,117560.0,117550.0,0.18056776]
[1752218423228,0.44194168,117570.0,117550.0,0.18056776]
[1752218423382,0.44194168,117570.0,117560.0,0.12332993]
[1752218423727,0.44194168,117570.0,117560.0,0.14448221]
[1752218423938,0.13288,117580.0,117570.0,0.0379]
[1752218424143,0.57482168,117580.0,117570.0,0.05905228]
[1752218424299,0.13288,117580.0,117570.0,0.05905228]
[1752218424510,0.57482168,117580.0,117570.0,0.05905228]
[1752218424949,0.44234168,117580.0,117570.0,0.05905228]
[1752218425359,0.46398966,117580.0,117570.0,0.05905228]
[1752218425543,0.02204798,117580.0,117570.0,0.05905228]
[1752218425750,0.46398966,117580.0,117570.0,0.05905228]
[1752218426145,0.46598966,117580.0,117570.0,0.05905228]
[1752218426952,0.46698966,117580.0,117570.0,0.04905228]
[1752218428792,0.46598966,117580.0,117570.0,0.04905228]
[1752218429035,0.46398966,117580.0,117570.0,0.04905228]
[1752218429434,0.46498966,117580.0,117570.0,0.04905228]
[1752218432043,0.46498966,117580.0,117570.0,0.13448221]
[1752218432247,0.0014,117580.0,117570.0,0.39940221]
[1752218432454,0.44334168,117580.0,117570.0,0.39940221]
[1752218432664,0.0014,117580.0,117570.0,0.39940221]
[1752218432863,0.44334168,117580.0,117570.0,0.39940221]
[1752218433065,0.46565741,117580.0,117570.0,0.39940221]
[1752218433265,0.02371573,117580.0,117570.0,0.39940221]
[1752218433471,0.46465741,117580.0,117570.0,0.40040221]
[1752218433941,0.46465741,117580.0,117570.0,0.40140221]
[1752218434350,0.0004,117580.0,117570.0,0.40140221]
[1752218434755,0.44234168,117580.0,117570.0,0.40140221]
[1752218436974,0.02271792,117590.0,117570.0,0.38240221]
[1752218437152,0.44194168,117580.0,117570.0,0.25852221]
[1752218437508,0.44194168,117580.0,117570.0,0.12608221]
[1752218437710,1.05886252,117580.0,117570.0,0.01792228]
[1752218437911,1.07636252,117580.0,117570.0,0.01792228]
[1752218438928,1.5176233,117580.0,117570.0,0.01692228]
[1752218439129,1.54349892,117580.0,117570.0,0.01792228]
[1752218439334,1.56900892,117580.0,117570.0,0.01792228]
[1752218439531,1.96900892,117580.0,117570.0,0.01792228]
[1752218439738,1.56900892,117580.0,117570.0,0.01692228]
[1752218439973,1.56900892,117580.0,117570.0,0.01792228]
[1752218440228,1.96900892,117580.0,117570.0,0.01792228]
[1752218440423,1.98940169,117580.0,117570.0,0.00942489]
[1752218440624,1.98940169,117580.0,117540.0,0.1541]
[1752218440900,0.44194168,117550.0,117540.0,0.23032555]
[1752218441114,0.44194168,117550.0,117540.0,0.09995555]
[1752218442010,0.42812993,117550.0,117540.0,0.10195555]
[1752218442359,0.42812993,117550.0,117540.0,0.10395555]
[1752218442786,0.42812993,117550.0,117540.0,0.10195555]
[1752218443222,0.44622993,117550.0,117540.0,0.08545555]
[1752218443424,0.44819993,117550.0,117540.0,0.08334555]
[1752218444588,0.83221635,117550.0,117540.0,0.08022555]
[1752218444787,0.81381635,117550.0,117540.0,0.08022555]
[1752218444999,0.81381635,117550.0,117540.0,0.073785]
[1752218445239,0.81381635,117550.0,117540.0,0.00923]
[1752218446921,0.80361734,117550.0,117540.0,0.00923]
[1752218448350,0.38568642,117550.0,117540.0,0.00923]
[1752218448558,0.8256581,117550.0,117540.0,0.00923]
[1752218449831,0.38371642,117550.0,117540.0,0.00923]
[1752218450073,0.9580981,117550.0,117540.0,0.00923]
[1752218450277,0.44194168,117550.0,117540.0,0.13115993]
[1752218450483,0.15014,117570.0,117550.0,0.0175]
[1752218450693,0.17565,117570.0,117550.0,0.0175]
[1752218450901,0.88388336,117560.0,117550.0,0.00313]
[1752218451110,0.90158336,117560.0,117550.0,0.00512]
[1752218451317,0.90356336,117560.0,117550.0,0.00512]
[1752218451550,0.90356336,117560.0,117550.0,0.00612]
[1752218451945,0.90356336,117560.0,117550.0,0.00512]
[1752218452153,0.8897532,117560.0,117550.0,0.00712]
[1752218452353,1.2297532,117560.0,117550.0,0.00513]
[1752218452551,1.2471532,117560.0,117550.0,0.002]
[1752218452752,1.2297532,117560.0,117550.0,0.01690271]
[1752218452989,1.2297532,117560.0,117550.0,0.01790271]
[1752218453805,1.2297532,117560.0,117550.0,0.02103271]
[1752218454322,1.2297532,117560.0,117550.0,0.01790271]
[1752218456371,1.40225236,117560.0,117550.0,0.01790271]
[1752218457983,1.40354236,117560.0,117550.0,0.01790271]
[1752218458141,1.4279849,117560.0,117550.0,0.01790271]
[1752218458646,1.4534969,117560.0,117550.0,0.01790271]
[1752218459119,1.99540936,117560.0,117550.0,0.07790271]
[1752218459309,1.57386045,117560.0,117550.0,0.07790271]
[1752218459668,2.01580213,117560.0,117550.0,0.07790271]
[1752218460488,2.02430784,117560.0,117550.0,0.07690271]
[1752218460725,2.01780213,117560.0,117550.0,0.07690271]
[1752218462290,1.57586045,117560.0,117550.0,0.07590271]
[1752218462491,0.64718178,117560.0,117550.0,0.07590271]
[1752218462729,1.51648429,117560.0,117550.0,0.07590271]
[1752218463353,1.53102514,117560.0,117550.0,0.07590271]
[1752218464064,1.53202514,117560.0,117550.0,0.07590271]
[1752218466674,1.93202514,117560.0,117550.0,0.07590271]
[1752218467268,1.04689178,117560.0,117550.0,0.07590271]
[1752218467416,1.93077514,117560.0,117550.0,0.07590271]
[1752218467898,1.79829514,117560.0,117550.0,0.07590271]
[1752218468105,1.84534521,117560.0,117550.0,0.07590271]
[1752218468281,1.6582652,117560.0,117550.0,0.08102271]
[1752218468520,1.38685536,117560.0,117550.0,0.08102271]
[1752218468745,1.25239536,117560.0,117550.0,0.08102271]
[1752218468968,1.38487536,117560.0,117550.0,0.09842271]
[1752218469177,0.500992,117560.0,117550.0,0.09842271]
[1752218469353,1.01936336,117560.0,117550.0,0.09842271]
[1752218469794,1.35936336,117560.0,117550.0,0.09842271]
[1752218470989,1.35936336,117560.0,117550.0,0.11102271]
[1752218471147,0.47746,117560.0,117550.0,0.11102271]
[1752218471350,1.36134336,117560.0,117550.0,0.11102271]
[1752218473227,1.37974336,117560.0,117550.0,0.10590271]
[1752218473805,1.40160108,117560.0,117550.0,0.10590271]
[1752218474663,1.40160108,117560.0,117550.0,0.10903271]
[1752218475579,1.40160108,117560.0,117550.0,0.10590271]
[1752218475782,1.40160108,117560.0,117550.0,0.10903271]
[1752218476403,1.38320108,117560.0,117550.0,0.09903271]
[1752218477364,1.40070108,117560.0,117550.0,0.09903271]
[1752218478142,1.38320108,117560.0,117550.0,0.09903271]
[1752218481217,1.40080108,117560.0,117550.0,0.09903271]
[1752218481821,1.25072108,117560.0,117550.0,0.08525]
[1752218482028,1.38122108,117560.0,117550.0,0.10385]
[1752218482230,1.38122108,117560.0,117550.0,0.08525]
[1752218482644,1.38319108,117560.0,117550.0,0.08525]
[1752218483358,1.38122108,117560.0,117550.0,0.08525]
[1752218483563,1.38122108,117560.0,117550.0,0.12335]
[1752218486375,1.24874108,117560.0,117550.0,0.12335]
[1752218486620,0.57742168,117560.0,117550.0,0.12335]
[1752218486793,0.003,117560.0,117550.0,0.20877993]
[1752218486991,0.44494168,117560.0,117550.0,0.20877993]
[1752218487421,0.44394168,117560.0,117550.0,0.20877993]
[1752218487602,0.44194168,117560.0,117550.0,0.20877993]
[1752218487815,0.44194168,117560.0,117550.0,0.21077993]
[1752218488393,0.13248,117570.0,117550.0,0.17267993]
[1752218488594,0.13248,117570.0,117560.0,0.12535993]
[1752218488805,0.44194168,117570.0,117560.0,0.09047993]
[1752218489240,0.15433772,117580.0,117570.0,0.037]
[1752218489488,0.9362794,117580.0,117570.0,0.04205]
[1752218489819,0.8037994,117580.0,117570.0,0.04205]
[1752218490012,0.9362394,117580.0,117570.0,0.05795545]
[1752218490673,0.49529772,117580.0,117570.0,0.05795545]
[1752218490832,0.9372394,117580.0,117570.0,0.05795545]
[1752218491258,0.9392394,117580.0,117570.0,0.05795545]
[1752218492035,0.9372394,117580.0,117570.0,0.05795545]
[1752218492202,0.9382394,117580.0,117570.0,0.05795545]
[1752218492606,0.9382394,117580.0,117570.0,0.02095545]
[1752218492976,0.9372394,117580.0,117570.0,0.02095545]
[1752218493404,0.9372394,117580.0,117570.0,0.03825545]
[1752218495206,0.9372394,117580.0,117570.0,0.05705545]
[1752218495407,0.9392194,117580.0,117570.0,0.02095545]
[1752218496213,0.9575194,117580.0,117570.0,0.01590545]
[1752218496417,0.9575194,117580.0,117570.0,0.01883545]
[1752218497047,1.39946108,117580.0,117570.0,0.01590545]
[1752218497254,1.39946108,117580.0,117570.0,0.01883545]
[1752218498554,1.41855108,117580.0,117570.0,0.01590545]
[1752218500139,1.44277008,117580.0,117570.0,0.01590545]
[1752218501065,1.44406008,117580.0,117570.0,0.01590545]
[1752218504132,1.44277008,117580.0,117570.0,0.01590545]
[1752218504794,0.42644672,117580.0,117570.0,0.01590545]
[1752218504955,0.52278672,117580.0,117570.0,0.01883545]
[1752218505167,0.341,117580.0,117570.0,0.05655545]
[1752218505560,0.78294168,117580.0,117570.0,0.05655545]
[1752218505760,0.91534168,117580.0,117570.0,0.05655545]
[1752218506136,0.91534168,117580.0,117570.0,0.05655304]
[1752218507289,0.4734,117580.0,117570.0,0.05655304]
[1752218507492,0.91534168,117580.0,117570.0,0.05655304]
[1752218508308,0.341,117580.0,117570.0,0.05655304]
[1752218508555,0.91534168,117580.0,117570.0,0.05655304]
[1752218508783,0.4734,117580.0,117570.0,0.05655304]
[1752218509009,0.91534168,117580.0,117570.0,0.05655304]
[1752218510080,0.78294168,117580.0,117570.0,0.05655304]
[1752218510289,0.91534168,117580.0,117570.0,0.05655304]
[1752218511147,0.57534168,117580.0,117570.0,0.05655304]
[1752218511990,0.44294168,117580.0,117570.0,0.14198297]
[1752218513326,0.44194168,117580.0,117570.0,0.14198297]
[1752218513757,0.44194168,117580.0,117570.0,0.14298297]
[1752218513970,0.44194168,117580.0,117570.0,0.14398297]
[1752218514192,0.44194168,117580.0,117570.0,0.14610936]
[1752218514414,0.44194168,117580.0,117570.0,0.14398297]
[1752218515534,0.44194168,117580.0,117570.0,0.22034669]
[1752218515777,0.44194168,117580.0,117570.0,0.22084669]
[1752218516032,0.44194168,117580.0,117570.0,0.35324669]
[1752218516477,0.44194168,117580.0,117570.0,0.27688297]
[1752218517150,0.44194168,117580.0,117570.0,0.14448297]
[1752218517362,0.44194168,117580.0,117570.0,0.12578297]
[1752218517580,0.44194168,117580.0,117570.0,0.14358297]
[1752218518028,0.44392168,117580.0,117570.0,0.10838297]
[1752218518476,0.57632168,117580.0,117570.0,0.10838297]
[1752218520881,0.57632168,117580.0,117570.0,0.02295304]
[1752218521103,0.57632168,117580.0,117570.0,0.02083304]
[1752218521104,0.5981794,117580.0,117570.0,0.02083304]
[1752218521326,0.5981794,117580.0,117570.0,0.02289304]
[1752218521986,0.5981794,117580.0,117570.0,0.02288559]
[1752218523188,0.15623772,117580.0,117570.0,0.02288559]
[1752218523455,0.5981794,117580.0,117570.0,0.02288559]
[1752218527081,0.5981794,117580.0,117570.0,0.00699]
[1752218527289,0.5981794,117580.0,117570.0,0.02288617]
[1752218530233,0.15623772,117580.0,117570.0,0.02288617]
[1752218530437,0.5981794,117580.0,117570.0,0.02288617]
[1752218533577,0.6158794,117580.0,117570.0,0.02288617]
[1752218534000,0.6158794,117580.0,117570.0,0.02082617]
[1752218535894,0.6158794,117580.0,117570.0,0.02084883]
[1752218536315,0.5981794,117580.0,117570.0,0.02290883]
[1752218537077,0.6153794,117580.0,117570.0,0.02290883]
[1752218537964,0.5981794,117580.0,117570.0,0.02290883]
[1752218538176,0.6153794,117580.0,117570.0,0.01791883]
[1752218538816,0.6329794,117580.0,117570.0,0.01791883]
[1752218539334,0.6342694,117580.0,117570.0,0.01791883]
[1752218539734,0.9742694,117580.0,117570.0,0.01791883]
[1752218540118,1.41621108,117580.0,117570.0,0.01791883]
[1752218540256,1.44171908,117580.0,117570.0,0.01791883]
[1752218540694,0.9997774,117580.0,117570.0,0.01791883]
[1752218543546,1.44171908,117580.0,117570.0,0.01791883]
[1752218544166,1.54168986,117580.0,117570.0,0.01791883]
[1752218547130,1.54168986,117580.0,117570.0,0.01691883]
[1752218547530,1.54168986,117580.0,117570.0,0.01591883]
[1752218547732,1.54268986,117580.0,117570.0,0.01591883]
[1752218547967,1.10074818,117580.0,117570.0,0.01591883]
[1752218548139,1.54268986,117580.0,117570.0,0.01591883]
[1752218552916,1.10074818,117580.0,117570.0,0.01591883]
[1752218553120,1.10074818,117580.0,117550.0,0.02322]
[1752218553339,0.44194168,117560.0,117550.0,0.07230562]
[1752218553514,0.56406322,117560.0,117550.0,0.07446562]
[1752218553935,0.56406322,117560.0,117550.0,0.07768562]
[1752218554313,1.0060049,117560.0,117550.0,0.07968562]
[1752218554513,1.0060049,117560.0,117550.0,0.07768562]
[1752218554712,1.0315149,117560.0,117550.0,0.07768562]
[1752218554932,1.0315149,117560.0,117550.0,0.07968562]
[1752218555116,1.0315149,117560.0,117550.0,0.06108562]
[1752218555522,1.3907949,117560.0,117550.0,0.03790562]
[1752218555718,1.4092949,117560.0,117550.0,0.03990562]
[1752218556200,1.4092949,117560.0,117550.0,0.03790562]
[1752218557357,0.49981,117560.0,117550.0,0.03790562]
[1752218557551,1.38369336,117560.0,117550.0,0.04328562]
[1752218558282,1.24939336,117560.0,117550.0,0.04328562]
[1752218558504,1.38171336,117560.0,117550.0,0.07908562]
[1752218558840,1.38171336,117560.0,117550.0,0.08108562]
[1752218559042,1.38171336,117560.0,117550.0,0.06268562]
[1752218559242,1.38171336,117560.0,117550.0,0.06068562]
[1752218559687,1.38271336,117560.0,117550.0,0.06068562]
[1752218560245,0.36651,117560.0,117550.0,0.07778562]
[1752218560450,0.001,117560.0,117550.0,0.07778562]
[1752218560648,0.44294168,117560.0,117550.0,0.16121555]
[1752218561390,0.44294168,117560.0,117550.0,0.1633423]
[1752218561598,0.44294168,117560.0,117550.0,0.16121555]
[1752218561801,0.41893378,117560.0,117550.0,0.23957927]
[1752218562007,0.13232,117570.0,117560.0,0.0354]
[1752218562235,0.57426168,117570.0,117560.0,0.05346562]
[1752218562441,0.57426168,117570.0,117560.0,0.05668562]
[1752218562662,0.13232,117570.0,117560.0,0.05668562]
[1752218563064,0.44194168,117570.0,117560.0,0.14211555]
[1752218563289,0.44194168,117570.0,117560.0,0.14071555]
[1752218563499,0.43174436,117570.0,117560.0,0.14071555]
[1752218563649,0.43174436,117570.0,117560.0,0.14171555]
[1752218563851,0.43174436,117570.0,117560.0,0.14271555]
[1752218567802,0.43174436,117570.0,117560.0,0.27499555]
[1752218570217,0.43174436,117570.0,117560.0,0.2749963]
[1752218571441,0.43174436,117570.0,117560.0,0.35136002]
[1752218571846,0.13228,117580.0,117560.0,0.33446002]
[1752218572177,0.13228,117580.0,117570.0,0.02128]
[1752218572389,0.13228,117580.0,117570.0,0.03920637]
[1752218572602,0.13224,117580.0,117570.0,0.1418363]
[1752218573221,0.44194168,117580.0,117570.0,0.1418363]
[1752218577203,0.44194168,117580.0,117570.0,0.12592993]
[1752218577561,0.44194168,117580.0,117570.0,0.14183045]
[1752218577971,0.44194168,117580.0,117570.0,0.12463045]
[1752218578118,0.44194168,117580.0,117570.0,0.10633045]
[1752218578726,0.44392168,117580.0,117570.0,0.10633045]
[1752218578887,0.44392168,117580.0,117570.0,0.23853045]
[1752218580008,0.44392168,117580.0,117570.0,0.15310052]
[1752218580226,0.46942668,117580.0,117570.0,0.15310052]
[1752218581067,0.46942668,117580.0,117570.0,0.15309659]
[1752218583686,0.45922962,117580.0,117570.0,0.15309659]
[1752218583817,0.45922962,117580.0,117570.0,1.15309659]
[1752218584247,0.45724962,117580.0,117570.0,1.18609659]
[1752218584460,0.45724962,117580.0,117570.0,1.27152652]
[1752218584870,0.43174462,117580.0,117570.0,1.27152652]
[1752218586367,0.43174462,117580.0,117570.0,1.27152693]
[1752218586624,0.44194168,117580.0,117570.0,1.27092693]
[1752218587446,0.025904,117590.0,117570.0,1.27092693]
[1752218587624,0.44194168,117580.0,117570.0,1.26794693]
[1752218588149,0.025904,117590.0,117570.0,1.25174693]
[1752218588301,0.025904,117590.0,117580.0,0.12240993]
[1752218588520,0.025904,117590.0,117580.0,0.14032693]
[1752218588724,0.46784568,117590.0,117580.0,0.14032693]
[1752218588941,0.46784568,117590.0,117580.0,0.12302693]
[1752218589142,0.46784568,117590.0,117580.0,0.10632693]
[1752218589606,0.025904,117590.0,117580.0,0.10632693]
[1752218589811,0.46784568,117590.0,117580.0,0.10632693]
[1752218590593,0.44234168,117590.0,117580.0,0.10632693]
[1752218591327,0.0004,117590.0,117580.0,0.12322693]
[1752218591524,0.44234168,117590.0,117580.0,0.13892693]
[1752218592292,0.44234168,117590.0,117580.0,0.12322693]
[1752218592691,0.44432168,117590.0,117580.0,0.10632693]
[1752218592898,0.46012168,117590.0,117580.0,0.23848693]
[1752218593336,0.46012168,117590.0,117580.0,0.020897]
[1752218593535,0.44992595,117590.0,117580.0,0.151037]
[1752218593987,0.46612595,117590.0,117580.0,0.148057]
[1752218598376,0.44992595,117590.0,117580.0,0.148057]
[1752218598967,0.45972168,117590.0,117580.0,0.151217]
[1752218599633,0.44392168,117590.0,117580.0,0.153287]
[1752218599839,0.44194168,117590.0,117580.0,0.153287]
[1752218600044,0.44194168,117590.0,117580.0,0.34828065]
[1752218600245,0.38630997,117600.0,117580.0,0.34828065]
[1752218600580,0.44194168,117590.0,117580.0,0.34512065]
[1752218600777,0.38630997,117600.0,117580.0,0.34512065]
[1752218601094,0.44194168,117590.0,117580.0,0.34512065]
[1752218601628,0.44194168,117590.0,117580.0,0.34828065]
[1752218602600,0.44194168,117590.0,117580.0,0.33158065]
[1752218602806,0.46062168,117590.0,117580.0,0.31297065]
[1752218603020,0.46062168,117590.0,117580.0,0.31504065]
[1752218603224,0.44392168,117590.0,117580.0,0.31504065]
[1752218603590,0.43372635,117590.0,117580.0,0.31504065]
[1752218604867,0.43372635,117590.0,117580.0,0.33094065]
[1752218605137,0.43372635,117590.0,117580.0,0.34694065]
[1752218607880,0.44194168,117590.0,117580.0,0.34794065]
[1752218608244,0.02950997,117600.0,117590.0,0.0168]
[1752218608450,0.02950997,117600.0,117590.0,0.054927]
[1752218608685,0.47145165,117600.0,117590.0,0.054927]
[1752218609975,0.47145165,117600.0,117590.0,0.037927]
[1752218610294,0.47145165,117600.0,117590.0,0.055327]
[1752218610803,0.47136914,117600.0,117590.0,0.14075693]
[1752218610978,0.00031749,117600.0,117590.0,0.14288296]
[1752218611191,0.00031749,117600.0,117590.0,0.21712065]
[1752218611562,0.00031749,117600.0,117590.0,0.20122365]
[1752218611773,0.44225917,117600.0,117590.0,0.21712084]
[1752218612190,0.00031749,117600.0,117590.0,0.21712084]
[1752218612597,4.844e-05,117600.0,117590.0,0.21712084]
[1752218612894,0.44199012,117600.0,117590.0,0.21712084]
[1752218613663,0.43179583,117600.0,117590.0,0.21712084]
[1752218614861,0.44194168,117600.0,117590.0,0.21812084]
[1752218617159,0.42179353,117600.0,117590.0,0.21802252]
[1752218617363,0.42179353,117600.0,117590.0,0.21802201]
[1752218617570,0.02495943,117610.0,117590.0,0.21802201]
[1752218617805,0.02495943,117610.0,117600.0,0.22062993]
[1752218618022,0.02495943,117610.0,117600.0,0.23859661]
[1752218618979,0.46690111,117610.0,117600.0,0.23859661]
[1752218619185,0.46690111,117610.0,117600.0,0.23895957]
[1752218619729,0.46690111,117610.0,117600.0,0.25415957]
[1752218620072,0.46690111,117610.0,117600.0,0.25415584]
[1752218620339,0.46790111,117610.0,117600.0,0.25415584]
[1752218621360,0.44334168,117610.0,117600.0,0.25415584]
[1752218621603,0.0014,117610.0,117600.0,0.26945584]
[1752218621847,0.0014,117610.0,117600.0,0.34572124]
[1752218622400,0.0004,117610.0,117600.0,0.78766292]
[1752218622605,7.423e-05,117610.0,117600.0,0.34672124]
[1752218622802,7.423e-05,117610.0,117600.0,0.37810779]
[1752218622987,7.423e-05,117610.0,117600.0,0.37210779]
[1752218623189,7.423e-05,117610.0,117600.0,0.37104872]
[1752218623388,7.423e-05,117610.0,117600.0,0.29484239]
[1752218623595,7.423e-05,117610.0,117600.0,0.30584239]
[1752218623801,7.423e-05,117610.0,117600.0,0.17380239]
[1752218623999,7.423e-05,117610.0,117600.0,0.30584239]
[1752218625731,7.423e-05,117610.0,117600.0,0.17380239]
[1752218625895,7.423e-05,117610.0,117600.0,0.30792824]
[1752218626256,1.201e-05,117610.0,117600.0,1.16590069]
[1752218626461,1.201e-05,117610.0,117600.0,1.19138869]
[1752218626888,1.201e-05,117610.0,117600.0,1.53138869]
[1752218627068,0.0004,117620.0,117610.0,0.35454085]
[1752218627222,0.0004,117620.0,117610.0,0.6483895]
[1752218627651,0.44234168,117620.0,117610.0,0.13713288]
[1752218627854,0.44234168,117620.0,117610.0,0.34527722]
[1752218628224,0.0004,117620.0,117610.0,0.34527722]
[1752218628353,0.0004,117620.0,117610.0,1.14175975]
[1752218628559,0.00156204,117630.0,117620.0,0.04524085]
[1752218628747,0.00156204,117630.0,117620.0,0.71661153]
[1752218628953,0.00156204,117630.0,117620.0,0.71976153]
[1752218629646,0.00156204,117630.0,117620.0,1.0847317]
[1752218629876,0.00156204,117630.0,117620.0,1.2915317]
[1752218630686,0.0004,117640.0,117630.0,0.48818253]
[1752218630914,0.0004,117640.0,117630.0,0.80272153]